fUST/lending_fUST_20251018
["ID","MTS","AMOUNT","RATE_DAILY","PERIOD"]
[391735082,1760761840154,-256.722673,0.000249,7]
[391735083,1760761840164,-256.722673,0.000249,7]
[391735088,1760761840328,-151.0,0.000249,7]
[391735089,1760761840338,-151.0,0.000249,7]
[391735090,1760761840347,-155.595573,0.000249,7]
[391735091,1760761840361,-151.0,0.000249,7]
[391735092,1760761840371,-151.189855,0.000249,7]
[391735093,1760761840380,-375.914962,0.000249,7]
[391735094,1760761840389,-151.189855,0.000249,7]
[391735095,1760761840398,-375.914962,0.000249,7]
[391735096,1760761840408,-151.189855,0.000249,7]
[391735097,1760761840417,-375.914962,0.000249,7]
[391735098,1760761840426,-151.189855,0.000249,7]
[391735099,1760761840436,-375.914962,0.000249,7]
[391735100,1760761840446,-151.0,0.000249,7]
[391735101,1760761840458,-480.934475,0.000249,7]
[391735102,1760761840467,-480.934475,0.000249,7]
[391735103,1760761840477,-480.934475,0.000249,7]
[391735104,1760761840487,-480.934475,0.000249,7]
[391735105,1760761840496,-280.154759,0.000249,7]
[391735107,1760761840506,-577.531264,0.000249,7]
[391735108,1760761840515,-151.0,0.000249,7]
[391735109,1760761840525,-280.154759,0.000249,7]
[391735110,1760761840534,-151.0,0.000249,7]
[391735111,1760761840543,-577.531264,0.000249,7]
[391735112,1760761840553,-151.0,0.000249,7]
[391735113,1760761840562,-280.154759,0.000249,7]
[391735114,1760761840572,-577.531264,0.000249,7]
[391735115,1760761840581,-280.154759,0.000249,7]
[391735116,1760761840591,-577.531264,0.000249,7]
[391735117,1760761840600,-151.0,0.000249,6]
[391735118,1760761840610,-151.0,0.000249,8]
[391735119,1760761840619,-151.0,0.000249,7]
[391735120,1760761840628,-151.0,0.000249,10]
[391735121,1760761840638,-151.0,0.000249,5]
[391735122,1760761840647,-151.0,0.000249,7]
[391735123,1760761840657,-813.730247,0.000249,7]
[391735124,1760761840666,-813.730247,0.000249,7]
[391735125,1760761840676,-151.0,0.000249,7]
[391735126,1760761840685,-813.730247,0.000249,7]
[391735127,1760761840695,-813.7302506,0.000249,7]
[391735128,1760761840704,-223.884306,0.000249,7]
[391735129,1760761840713,-223.884306,0.000249,7]
[391735130,1760761840723,-223.884306,0.000249,7]
[391735131,1760761840733,-223.884297,0.000249,7]
[391735132,1760761840742,-151.0,0.000249,7]
[391735133,1760761840751,-151.0,0.000249,7]
[391735134,1760761840761,-151.0,0.000249,7]
[391735135,1760761840770,-243.385433,0.000249,7]
[391735136,1760761840779,-243.385433,0.000249,7]
[391735137,1760761840789,-151.0,0.000249,7]
[391735138,1760761840798,-243.385433,0.000249,7]
[391735139,1760761840807,-151.0,0.000249,7]
[391735140,1760761840816,-243.385426,0.000249,7]
[391735141,1760761840825,-151.0,0.000249,7]
[391735142,1760761840833,-151.0,0.000249,7]
[391735143,1760761840842,-151.0,0.000249,7]
[391735144,1760761840851,-500.0,0.00024903,2]
[391735145,1760761840859,-45755.55772687,0.00024905,2]
[391735146,1760761841643,-3e-08,0.00024824,7]
[391735168,1760761855479,5000.0,0.0002441,2]
[391735169,1760761880745,5000.0,0.00024526,2]
[391735170,1760761885424,153.23,0.00019243,2]
[391735171,1760761885892,306.47,0.00020159,2]
[391735172,1760761888237,459.7,0.00021075,2]
[391735173,1760761889136,612.93,0.00021992,2]
[391735174,1760761889356,766.17,0.00022908,2]
[391735175,1760761889808,919.4,0.00023824,2]
[391735176,1760761904264,1092.13182544,0.00024526,2]
[391735177,1760761904914,1838.43067722,0.00023,2]
[391735178,1760761909795,175.154,0.00024455,2]
[391735179,1760761931989,-300.0,0.00024648,2]
[391735180,1760761933817,757.09146227,0.00024549,2]
[391735182,1760761947167,-500.0,0.00024649,2]
[391735183,1760761947199,-500.0,0.00024649,2]
[391735184,1760761947229,-500.0,0.00024649,2]
[391735185,1760761947258,-500.0,0.00024649,2]
[391735186,1760761947291,-500.0,0.00024649,2]
[391735187,1760761947321,-500.0,0.00024649,2]
[391735188,1760761947351,-500.0,0.00024649,2]
[391735189,1760761947379,-500.0,0.00024649,2]
[391735190,1760761947407,-500.0,0.00024649,2]
[391735191,1760761947449,-500.0,0.00024649,2]
[391735192,1760761953222,-500.0,0.00024649,2]
[391735193,1760761953251,-500.0,0.00024649,2]
[391735194,1760761953280,-500.0,0.00024649,2]
[391735195,1760761953312,-500.0,0.00024649,2]
[391735196,1760761953340,-500.0,0.00024649,2]
[391735197,1760761953369,-500.0,0.00024649,2]
[391735198,1760761953397,-500.0,0.00024649,2]
[391735199,1760761953430,-500.0,0.00024649,2]
[391735200,1760761953460,-500.0,0.00024649,2]
[391735201,1760761953489,-500.0,0.00024649,2]
[391735202,1760761959294,-500.0,0.00024649,2]
[391735203,1760761959329,-500.0,0.00024649,2]
[391735204,1760761959361,-500.0,0.00024649,2]
[391735205,1760761959393,-500.0,0.00024649,2]
[391735206,1760761959563,-500.0,0.00024649,2]
[391735207,1760761959602,-500.0,0.00024649,2]
[391735208,1760761959633,-500.0,0.00024649,2]
[391735209,1760761959665,-500.0,0.00024649,2]
[391735210,1760761959701,-500.0,0.00024649,2]
[391735211,1760761959732,-500.0,0.00024649,2]
[391735212,1760761968440,260.14,0.00019263,2]
[391735213,1760761968816,520.27,0.0002018,2]
[391735214,1760761969247,780.41,0.00021097,2]
[391735215,1760761969800,1040.54,0.00022015,2]
[391735216,1760761970225,1300.68,0.00022932,2]
[391735217,1760761970767,1560.82,0.00023849,2]
[391735218,1760761971183,500.0,0.00024648,2]
[391735219,1760761971545,500.0,0.00024648,2]
[391735220,1760761971893,500.0,0.00024648,2]
[391735221,1760761972333,500.0,0.00024648,2]
[391735222,1760761972712,500.0,0.00024648,2]
[391735223,1760761972778,500.0,0.00024648,2]
[391735224,1760761973160,180.05853773,0.00024648,2]
[391735225,1760761974424,-319.94146227,0.00024648,2]
[391735226,1760761974458,-500.0,0.00024648,2]
[391735227,1760761974488,-500.0,0.00024648,2]
[391735228,1760761974519,-500.0,0.00024648,2]
[391735229,1760761974549,-1360.12707546,0.00024648,2]
[391735230,1760761980475,-3639.87292454,0.00024648,2]
[391735231,1760761980507,-467.99052727,0.00024648,2]
[391735232,1760761980535,-500.0,0.00024648,2]
[391735233,1760761980564,-284.28309638,0.00024648,2]
[391735234,1760761980981,1046.375179,0.00023755,2]
[391735235,1760761987554,-300.0,0.00024647,2]
[391735236,1760761987585,-215.71690362,0.00024648,2]
[391735237,1760761987615,-500.0,0.00024648,2]
[391735238,1760761987652,-500.0,0.00024648,2]
[391735239,1760761987682,-202.01764257,0.00024648,2]
[391735240,1760761987710,-500.0,0.00024648,2]
[391735241,1760761987740,-500.0,0.00024648,2]
[391735242,1760761987770,-500.0,0.00024648,2]
[391735243,1760761987802,-500.0,0.00024648,2]
[391735244,1760761987831,-500.0,0.00024648,2]
[391735245,1760761987859,-500.0,0.00024648,2]
[391735246,1760761987889,-64.54090762,0.00024648,2]
[391735247,1760761992602,-435.45909238,0.00024648,2]
[391735248,1760761992634,-500.0,0.00024648,2]
[391735249,1760761992669,-500.0,0.00024648,2]
[391735250,1760761992699,-500.0,0.00024648,2]
[391735251,1760761992744,-500.0,0.00024648,2]
[391735252,1760761992777,-500.0,0.00024648,2]
[391735253,1760761992810,-500.0,0.00024648,2]
[391735254,1760761992840,-500.0,0.00024648,2]
[391735255,1760761992870,-500.0,0.00024648,2]
[391735256,1760761992898,-500.0,0.00024648,2]
[391735257,1760761993101,-500.0,0.00024648,2]
[391735258,1760761993133,-500.0,0.00024648,2]
[391735259,1760761993162,-500.0,0.00024648,2]
[391735260,1760761993193,-500.0,0.00024648,2]
[391735261,1760761993240,-500.0,0.00024648,2]
[391735262,1760761993302,-500.0,0.00024648,2]
[391735263,1760761993361,-500.0,0.00024648,2]
[391735264,1760761993426,-500.0,0.00024648,2]
[391735265,1760761993489,-500.0,0.00024648,2]
[391735266,1760761993548,-500.0,0.00024648,2]
[391735267,1760761995638,-500.0,0.00024648,2]
[391735268,1760761995667,-500.0,0.00024648,2]
[391735269,1760761995697,-500.0,0.00024648,2]
[391735270,1760761995726,-500.0,0.00024648,2]
[391735271,1760761995755,-500.0,0.00024648,2]
[391735272,1760761995784,-500.0,0.00024648,2]
[391735273,1760761995813,-500.0,0.00024648,2]
[391735274,1760761995841,-500.0,0.00024648,2]
[391735275,1760761995870,-629.49815479,0.00024648,2]
[391735276,1760761995899,-241.01369042,0.00024648,2]
[391735277,1760761998856,-258.98630958,0.00024648,2]
[391735278,1760761998887,-500.0,0.00024648,2]
[391735279,1760761998916,-500.0,0.00024648,2]
[391735280,1760761998948,-500.0,0.00024648,2]
[391735281,1760761998976,-500.0,0.00024648,2]
[391735282,1760761999005,-500.0,0.00024648,2]
[391735283,1760761999032,-500.0,0.00024648,2]
[391735284,1760761999061,-500.0,0.00024648,2]
[391735285,1760761999091,-500.0,0.00024648,2]
[391735286,1760761999124,-500.0,0.00024648,2]
[391735287,1760761999426,-500.0,0.00024648,2]
[391735288,1760761999463,-500.0,0.00024648,2]
[391735289,1760761999497,-500.0,0.00024648,2]
[391735290,1760761999531,-500.0,0.00024648,2]
[391735291,1760761999564,-500.0,0.00024648,2]
[391735292,1760761999598,-500.0,0.00024648,2]
[391735293,1760761999631,-500.0,0.00024648,2]
[391735294,1760761999663,-500.0,0.00024648,2]
[391735295,1760761999694,-500.0,0.00024648,2]
[391735296,1760761999725,-500.0,0.00024648,2]
[391735297,1760762001703,-500.0,0.00024648,2]
[391735298,1760762001734,-500.0,0.00024648,2]
[391735299,1760762001763,-500.0,0.00024648,2]
[391735300,1760762001793,-500.0,0.00024648,2]
[391735301,1760762001823,-500.0,0.00024648,2]
[391735302,1760762001853,-500.0,0.00024648,2]
[391735303,1760762001882,-500.0,0.00024648,2]
[391735304,1760762001912,-500.0,0.00024648,2]
[391735305,1760762001943,-500.0,0.00024648,2]
[391735306,1760762001972,-500.0,0.00024648,2]
[391735307,1760762045480,360.837838,0.00023664,2]
[391735308,1760762053283,190.61,0.0001924,2]
[391735309,1760762053766,381.22,0.00020156,2]
[391735310,1760762054688,571.83,0.00021072,2]
[391735311,1760762055246,762.43,0.00021988,2]
[391735312,1760762055736,363.09048034,0.00022904,2]
[391735313,1760762055761,589.94951966,0.00022904,2]
[391735314,1760762056165,1143.65,0.0002382,2]
[391735315,1760762134390,150.0,0.00019237,2]
[391735316,1760762134795,279.33,0.00020153,2]
[391735317,1760762135241,418.99,0.00021069,2]
[391735318,1760762135755,558.66,0.00021986,2]
[391735319,1760762136176,698.32,0.00022902,2]
[391735320,1760762136789,837.99,0.00023818,2]
[391735326,1760762223265,150.0,0.00019086,2]
[391735327,1760762223715,204.41,0.00019995,2]
[391735328,1760762224825,306.61,0.00020904,2]
[391735329,1760762225230,408.82,0.00021813,2]
[391735330,1760762225783,511.02,0.00022721,2]
[391735331,1760762226253,613.22,0.0002363,2]
[391735332,1760762265649,417.15472785,0.00024526,2]
[391735333,1760762269949,166.51626921,0.00023944,5]
[391735334,1760762334935,150.0,0.00019314,2]
[391735335,1760762335397,150.0,0.00020234,2]
[391735336,1760762335875,222.84,0.00021153,2]
[391735337,1760762336370,297.12,0.00022073,2]
[391735338,1760762336773,371.4,0.00022993,2]
[391735339,1760762337295,445.68,0.00023913,2]
[391735342,1760762418230,153.14058757,0.000245,2]
[391735343,1760762419926,-453.29595438,0.00024539,2]
[391735344,1760762421762,150.0,0.00019286,2]
[391735345,1760762422349,150.0,0.00020205,2]
[391735346,1760762422877,160.33,0.00021123,2]
[391735347,1760762423631,213.78,0.00022042,2]
[391735348,1760762424023,267.22,0.0002296,2]
[391735349,1760762424696,320.67,0.00023878,2]
[391735350,1760762430033,614.74812879,0.00023944,5]
[391735351,1760762435133,-752.27,0.0002455,2]
[391735352,1760762438085,-685.05457335,0.0002455,2]
[391735353,1760762438106,-800.0,0.00024555,2]
[391735354,1760762438127,-163.11005858,0.00024599,2]
[391735355,1760762438150,-500.0,0.00024599,2]
[391735356,1760762438173,-578.00196028,0.00024599,2]
[391735357,1760762438196,-500.0,0.00024599,2]
[391735358,1760762438217,-500.0,0.00024599,2]
[391735359,1760762438240,-500.0,0.00024599,2]
[391735360,1760762438260,-236.70814021,0.00024599,2]
[391735361,1760762438282,-500.0,0.00024599,2]
[391735362,1760762438303,-574.63683551,0.00024599,2]
[391735363,1760762438323,-500.0,0.00024599,2]
[391735364,1760762438344,-500.0,0.00024599,2]
[391735365,1760762438366,-500.0,0.00024599,2]
[391735366,1760762438388,-500.0,0.00024599,2]
[391735367,1760762438408,-500.0,0.00024599,2]
[391735368,1760762438428,-500.0,0.00024599,2]
[391735369,1760762438451,-500.0,0.00024599,2]
[391735370,1760762438476,-500.0,0.00024599,2]
[391735371,1760762438500,-500.0,0.00024599,2]
[391735372,1760762438527,-500.0,0.00024599,2]
[391735373,1760762438547,-500.0,0.00024599,2]
[391735374,1760762438569,-500.0,0.00024599,2]
[391735375,1760762438591,-500.0,0.00024599,2]
[391735376,1760762438616,-500.0,0.00024599,2]
[391735377,1760762438638,-500.0,0.00024599,2]
[391735378,1760762438660,-500.0,0.00024599,2]
[391735379,1760762438682,-500.0,0.00024599,2]
[391735380,1760762438704,-500.0,0.00024599,2]
[391735381,1760762438726,-500.0,0.00024599,2]
[391735382,1760762438748,-500.0,0.00024599,2]
[391735383,1760762438769,-500.0,0.00024599,2]
[391735384,1760762438789,-500.0,0.00024599,2]
[391735385,1760762438810,-500.0,0.00024599,2]
[391735386,1760762438831,-500.0,0.00024599,2]
[391735387,1760762438853,-500.0,0.00024599,2]
[391735388,1760762438876,-500.0,0.00024599,2]
[391735389,1760762438899,-500.0,0.00024599,2]
[391735390,1760762438921,-500.0,0.00024599,2]
[391735391,1760762438943,-500.0,0.00024599,2]
[391735392,1760762438965,-500.0,0.00024599,2]
[391735393,1760762438987,-500.0,0.00024599,2]
[391735394,1760762439010,-500.0,0.00024599,2]
[391735395,1760762439032,-500.0,0.00024599,2]
[391735396,1760762439053,-500.0,0.00024599,2]
[391735397,1760762439076,-500.0,0.00024599,2]
[391735398,1760762439100,-500.0,0.00024599,2]
[391735399,1760762439123,-500.0,0.00024599,2]
[391735400,1760762439145,-500.0,0.00024599,2]
[391735401,1760762439168,-192.09156292,0.00024599,2]
[391735402,1760762439191,-500.0,0.00024599,2]
[391735403,1760762439213,-500.0,0.00024599,2]
[391735404,1760762439236,-500.0,0.00024599,2]
[391735405,1760762439259,-500.0,0.00024599,2]
[391735406,1760762439281,-500.0,0.00024599,2]
[391735407,1760762439303,-500.0,0.00024599,2]
[391735408,1760762439325,-500.0,0.00024599,2]
[391735409,1760762439346,-500.0,0.00024599,2]
[391735410,1760762439368,-500.0,0.00024599,2]
[391735411,1760762439389,-500.0,0.00024599,2]
[391735412,1760762439412,-500.0,0.00024599,2]
[391735413,1760762439434,-500.0,0.00024599,2]
[391735414,1760762439456,-500.0,0.00024599,2]
[391735415,1760762439478,-500.0,0.00024599,2]
[391735416,1760762439500,-500.0,0.00024599,2]
[391735417,1760762439523,-500.0,0.00024599,2]
[391735418,1760762439544,-500.0,0.00024599,2]
[391735419,1760762439566,-500.0,0.00024599,2]
[391735420,1760762439589,-500.0,0.00024599,2]
[391735421,1760762439614,-384.63961905,0.00024599,2]
[391735422,1760762439636,-500.0,0.00024599,2]
[391735423,1760762439658,-500.0,0.000246,2]
[391735424,1760762439679,-45427.0,0.000246,2]
[391735425,1760762439699,-296.0,0.00024624,2]
[391735426,1760762439720,-300.0,0.00024624,2]
[391735427,1760762439740,-300.0,0.00024624,2]
[391735428,1760762439760,-1200.0,0.00024624,2]
[391735429,1760762439782,-10442.66413554,0.00024625,2]
[391735430,1760762439802,-403375.09311456,0.00024639,2]
[391735432,1760762503418,150.0,0.00019551,2]
[391735433,1760762503784,150.0,0.00020482,2]
[391735434,1760762504240,150.0,0.00021413,2]
[391735435,1760762504531,825.8507708,0.00024541,2]
[391735436,1760762504687,150.0,0.00022344,2]
[391735437,1760762505161,186.91,0.00023275,2]
[391735438,1760762505609,224.3,0.00024206,2]
[391735439,1760762536820,6658.4092292,0.00024541,2]
[391735440,1760762536845,303.36686116,0.00024541,2]
[391735441,1760762541353,-300.0,0.00024598,2]
[391735442,1760762562532,384.85242432,0.0002372,2]
[391735443,1760762564948,269.33723481,0.0002391,2]
[391735444,1760762567260,484.80702266,0.0002391,2]
[391735445,1760762570035,861.8791514,0.0002391,2]
[391735446,1760762581778,150.0,0.00019366,2]
[391735447,1760762582192,150.0,0.00020288,2]
[391735448,1760762583146,150.0,0.0002121,2]
[391735449,1760762583607,150.0,0.00022133,2]
[391735450,1760762584065,150.0,0.00023055,2]
[391735451,1760762584504,150.0,0.00023977,2]
[391735452,1760762603104,417.15472785,0.00024598,2]
[391735453,1760762630593,586.0,0.00024099,2]
[391735455,1760762637171,586.0,0.00024285,2]
[391735459,1760762654976,150.0,0.00019081,2]
[391735460,1760762655953,150.0,0.0001999,2]
[391735461,1760762656808,150.0,0.00020898,2]
[391735462,1760762657202,150.0,0.00021807,2]
[391735463,1760762657658,150.0,0.00022716,2]
[391735464,1760762658136,150.0,0.00023624,2]
[391735465,1760762686962,160.0,0.00023771,4]
[391735466,1760762687201,160.0,0.00022481,3]
[391735467,1760762699889,364.0648286,0.00023633,2]
[391735468,1760762715314,3325.91461036,0.000245,2]
[391735469,1760762715339,9696.64313884,0.000245,2]
[391735470,1760762715363,7216.66996245,0.000245,2]
[391735471,1760762715387,10000.01,0.000245,2]
[391735472,1760762715410,10000.01,0.000245,2]
[391735473,1760762715434,755.18889571,0.000245,2]
[391735474,1760762715464,10000.01,0.000245,2]
[391735475,1760762715488,10000.01,0.000245,2]
[391735476,1760762715511,10000.01,0.000245,2]
[391735477,1760762715534,3989.53339264,0.000245,2]
[391735478,1760762718295,-300.0,0.00024599,2]
[391735479,1760762718326,-1200.0,0.00024599,2]
[391735480,1760762733859,423.7011465,0.0002391,2]
[391735481,1760762736264,762.66206371,0.0002391,2]
[391735482,1760762738182,1354.48782514,0.0002391,2]
[391735483,1760762762350,300.0,0.00024599,2]
[391735484,1760762784690,722.61942445,0.00024529,2]
[391735485,1760762797213,3436.5395402,0.00024541,2]
[391735486,1760762797238,1204.64452004,0.00024541,2]
[391735487,1760762822335,300.0,0.00024599,2]
[391735488,1760762832465,-4202.62064367,0.000246,2]
[391735489,1760762835569,-10000.01,0.000246,2]
[391735490,1760762841893,500.0,0.00024599,2]
[391735491,1760762847521,-4202.64064367,0.000246,2]
[391735492,1760762847554,-1094.72871266,0.000246,2]
[391735493,1760762850568,-500.0,0.000246,2]
[391735494,1760762850596,-289.48923361,0.000246,2]
[391735495,1760762873458,169.12586008,0.00024431,5]
[391735499,1760762889175,500.0,0.00024599,2]
[391735500,1760762926414,417.15472785,0.000246,2]
[391735501,1760762967984,500.0,0.00024599,2]
[391735502,1760762990513,-177.34362596,0.00024624,2]
[391735503,1760762996310,-122.65637404,0.00024624,2]
[391735504,1760762996332,-211.5448284,0.00024625,2]
[391735505,1760762998192,-161.29577784,0.00024625,2]
[391735506,1760762999783,-153.0,0.00024625,2]
[391735507,1760763005497,-174.19193565,0.00024624,2]
[391735508,1760763020490,-125.80806435,0.00024624,2]
[391735509,1760763020513,-46.69193565,0.00024624,2]
[391735510,1760763022048,-153.46632533,0.00024624,2]
[391735511,1760763024525,-341.84173902,0.00024624,2]
[391735512,1760763024556,-66.28481679,0.00024625,2]
[391735513,1760763027072,-280.32084301,0.00024625,2]
[391735514,1760763029838,-278.89,0.00024625,2]
[391735529,1760763031830,-48848.66373396,0.00024625,2]
[391735531,1760763031840,-500.0,0.00024625,2]
[391735533,1760763031850,-203.23900319,0.00024625,2]
[391735535,1760763031860,-500.0,0.00024625,2]
[391735537,1760763031869,-500.0,0.00024625,2]
[391735539,1760763031879,-500.0,0.00024625,2]
[391735541,1760763031890,-500.0,0.00024625,2]
[391735543,1760763031899,-500.0,0.00024625,2]
[391735545,1760763031909,-500.0,0.00024625,2]
[391735547,1760763031918,-500.0,0.00024625,2]
[391735549,1760763031927,-239.24138269,0.00024625,2]
[391735551,1760763031936,-500.0,0.00024625,2]
[391735553,1760763031945,-500.0,0.00024625,2]
[391735555,1760763031955,-500.0,0.00024625,2]
[391735557,1760763031963,-500.0,0.00024625,2]
[391735560,1760763031972,-500.0,0.00024625,2]
[391735563,1760763031981,-500.0,0.00024625,2]
[391735566,1760763031990,-500.0,0.00024625,2]
[391735569,1760763032000,-500.0,0.00024625,2]
[391735572,1760763032009,-500.0,0.00024625,2]
[391735574,1760763032018,-500.0,0.00024625,2]
[391735576,1760763032027,-500.0,0.00024625,2]
[391735578,1760763032036,-500.0,0.00024625,2]
[391735580,1760763032045,-500.0,0.00024625,2]
[391735582,1760763032054,-300.0,0.00024625,2]
[391735584,1760763032063,-500.0,0.00024625,2]
[391735586,1760763032072,-500.0,0.00024625,2]
[391735588,1760763032082,-500.0,0.00024625,2]
[391735590,1760763032092,-500.0,0.00024625,2]
[391735592,1760763032101,-500.0,0.00024625,2]
[391735594,1760763032111,-500.0,0.00024625,2]
[391735596,1760763032120,-162.3377108,0.00024625,2]
[391735598,1760763032130,-500.0,0.00024625,2]
[391735600,1760763032139,-500.0,0.00024625,2]
[391735602,1760763032148,-500.0,0.00024625,2]
[391735604,1760763032158,-500.48076246,0.00024625,2]
[391735606,1760763032168,-187.62411356,0.00024625,2]
[391735608,1760763032177,-500.0,0.00024625,2]
[391735610,1760763032186,-500.0,0.00024625,2]
[391735612,1760763032196,-500.0,0.00024625,2]
[391735614,1760763032206,-500.0,0.00024625,2]
[391735616,1760763032215,-500.0,0.00024625,2]
[391735618,1760763032224,-500.0,0.00024625,2]
[391735620,1760763032234,-500.0,0.00024625,2]
[391735622,1760763032243,-500.0,0.00024625,2]
[391735624,1760763032252,-500.0,0.00024625,2]
[391735626,1760763032261,-500.0,0.00024625,2]
[391735628,1760763032271,-500.0,0.00024625,2]
[391735630,1760763032280,-500.0,0.00024625,2]
[391735632,1760763032290,-500.0,0.00024625,2]
[391735634,1760763032299,-500.0,0.00024625,2]
[391735636,1760763032308,-500.0,0.00024625,2]
[391735638,1760763032317,-500.0,0.00024625,2]
[391735640,1760763032327,-500.0,0.00024625,2]
[391735642,1760763032339,-500.0,0.00024625,2]
[391735644,1760763032348,-500.0,0.00024625,2]
[391735646,1760763032358,-500.0,0.00024625,2]
[391735648,1760763032368,-167.85693316,0.00024625,2]
[391735665,1760763032511,-239.61052967,0.00024625,2]
[391735797,1760763033757,-300.0,0.00024625,2]
[391735849,1760763037652,-144.23003529,0.00024625,2]
[391735850,1760763037661,-500.0,0.00024627,2]
[391735851,1760763037671,-500.0,0.00024627,2]
[391735852,1760763037681,-508.91836009,0.00024627,2]
[391735853,1760763037695,-500.0,0.00024627,2]
[391735854,1760763037705,-500.0,0.00024628,2]
[391735855,1760763037714,-2212.89,0.00024629,3]
[391735856,1760763037723,-325.3466673,0.00024629,3]
[391735857,1760763037734,-781.1033327,0.00024629,3]
[391735858,1760763037743,-553.22,0.00024629,3]
[391735859,1760763037752,-276.61,0.00024629,3]
[391735860,1760763037761,-829.87,0.00024629,3]
[391735861,1760763037771,-575.47605366,0.00024637,2]
[391735862,1760763037780,-471.01610902,0.00024637,2]
[391735863,1760763037789,-168.07636764,0.00024638,2]
[391735864,1760763037800,-345.96721579,0.00024638,2]
[391735865,1760763037810,-500.0,0.00024638,2]
[391735866,1760763037819,-500.0,0.00024638,2]
[391735867,1760763037828,-500.0,0.00024638,2]
[391735868,1760763037837,-500.0,0.00024638,2]
[391735869,1760763037847,-500.0,0.00024638,2]
[391735870,1760763037856,-500.0,0.00024638,2]
[391735871,1760763037865,-500.0,0.00024638,2]
[391735872,1760763037877,-500.0,0.00024638,2]
[391735873,1760763037887,-566.39913888,0.00024638,2]
[391735874,1760763037896,-276.56338521,0.00024639,2]
[391735875,1760763037934,-296595.79216496,0.00024639,2]
[391735876,1760763037943,-3036.57656044,0.00024641,2]
[391735877,1760763037954,-593.65071067,0.00024645,2]
[391735878,1760763037963,-170.57949682,0.00024645,2]
[391735879,1760763037972,-500.0,0.00024645,2]
[391735880,1760763037981,-500.0,0.00024645,2]
[391735881,1760763037991,-500.0,0.00024645,2]
[391735882,1760763038000,-250.07896076,0.00024645,2]
[391735883,1760763038010,-500.0,0.00024657,2]
[391735884,1760763038025,-500.0,0.00024657,2]
[391735885,1760763038035,-391.95903767,0.00024657,2]
[391735886,1760763038044,-277.431436,0.00024657,2]
[391735887,1760763038053,-500.0,0.00024657,2]
[391735888,1760763038063,-480.01644003,0.00024657,2]
[391735889,1760763038072,-500.0,0.00024657,2]
[391735890,1760763038082,-465.12225718,0.00024657,2]
[391735891,1760763038091,-500.0,0.00024657,2]
[391735892,1760763038100,-500.0,0.00024657,2]
[391735893,1760763038110,-500.0,0.00024657,2]
[391735894,1760763038119,-500.0,0.00024657,2]
[391735895,1760763038129,-500.0,0.00024657,2]
[391735896,1760763038138,-500.0,0.00024657,2]
[391735897,1760763038149,-500.0,0.00024657,2]